[Event "Titled Tuesday Blitz March 21 Early 2023"]
[White "Koellner, Ruben Gideon"]
[Black "Jimenez Jimenez, Leandro"]
[WhiteFideId "12993093"]
[BlackFideId "6415253"]
[WhiteElo "2303"]
[BlackElo "2263"]
[Result "1-0"]
[Round "04"]
[TimeControl "180+2"]
[Date "2023.03.21"]
[WhiteClock "0:02:16"]
[BlackClock "0:00:03"]

1. d4 {[%clk 0:03:00]}  d5 {[%clk 0:02:58]} 2. Nf3 {[%clk 0:02:59]}  Nf6 {[%clk 0:02:58]} 3. e3 {[%clk 0:02:58]}  e6 {[%clk 0:02:57]} 4. Nbd2 {[%clk 0:02:58]}  c5 {[%clk 0:02:56]} 5. c3 {[%clk 0:02:59]}  Nc6 {[%clk 0:02:56]} 6. Bd3 {[%clk 0:02:59]}  Bd6 {[%clk 0:02:55]} 7. O-O {[%clk 0:02:59]}  O-O {[%clk 0:02:55]} 8. dxc5 {[%clk 0:03:00]}  Bxc5 {[%clk 0:02:56]} 9. b4 {[%clk 0:03:00]}  Bb6 {[%clk 0:02:54]} 10. b5 {[%clk 0:03:00]}  Na5 {[%clk 0:02:53]} 11. c4 {[%clk 0:02:58]}  Qe7 {[%clk 0:02:43]} 12. a4 {[%clk 0:02:57]}  Rd8 {[%clk 0:02:43]} 13. Ba3 {[%clk 0:02:57]}  Bc5 {[%clk 0:02:43]} 14. Bxc5 {[%clk 0:02:53]}  Qxc5 {[%clk 0:02:44]} 15. Qc2 {[%clk 0:02:51]}  Bd7 {[%clk 0:02:37]} 16. cxd5 {[%clk 0:02:44]}  Qxc2 {[%clk 0:02:21]} 17. Bxc2 {[%clk 0:02:45]}  Nxd5 {[%clk 0:02:19]} 18. Be4 {[%clk 0:02:44]}  Rac8 {[%clk 0:02:11]} 19. Rfc1 {[%clk 0:02:44]}  Nc3 {[%clk 0:02:11]} 20. Kf1 {[%clk 0:02:44]}  Kf8 {[%clk 0:01:53]} 21. h4 {[%clk 0:02:37]}  Ke7 {[%clk 0:01:39]} 22. Bxh7 {[%clk 0:02:30]}  g6 {[%clk 0:01:34]} 23. h5 {[%clk 0:02:30]}  Kf6 {[%clk 0:01:31]} 24. hxg6 {[%clk 0:02:30]}  fxg6 {[%clk 0:01:32]} 25. Rxc3 {[%clk 0:02:23]}  Rxc3 {[%clk 0:01:30]} 26. Ne4+ {[%clk 0:02:24]}  Kg7 {[%clk 0:01:28]} 27. Nxc3 {[%clk 0:02:25]}  Kxh7 {[%clk 0:01:26]} 28. Rd1 {[%clk 0:02:24]}  Nb3 {[%clk 0:00:55]} 29. Ne5 {[%clk 0:02:22]}  Nc5 {[%clk 0:00:55]} 30. Ke1 {[%clk 0:02:23]}  Kg7 {[%clk 0:00:54]} 31. f4 {[%clk 0:02:21]}  Kf6 {[%clk 0:00:51]} 32. g4 {[%clk 0:02:17]}  g5 {[%clk 0:00:51]} 33. Nxd7+ {[%clk 0:02:13]}  Rxd7 {[%clk 0:00:07]} 34. Ne4+ {[%clk 0:02:12]}  Nxe4 {[%clk 0:00:06]} 35. Rxd7 {[%clk 0:02:11]}  Nc5 {[%clk 0:00:05]} 36. Rc7 {[%clk 0:02:10]}  Nxa4 {[%clk 0:00:02]} 37. Rxb7 {[%clk 0:02:09]}  Nc3 {[%clk 0:00:03]} 38. Kd2 {[%clk 0:02:08]}  Ne4+ {[%clk 0:00:04]} 39. Ke2 {[%clk 0:02:07]}  Nc3+ {[%clk 0:00:03]} 40. Kd3 {[%clk 0:02:07]}  Nd5 {[%clk 0:00:03]} 41. fxg5+ {[%clk 0:02:06]}  Kxg5 {[%clk 0:00:04]} 42. Rxa7 {[%clk 0:02:06]}  Kxg4 {[%clk 0:00:03]} 43. Rd7 {[%clk 0:02:06]}  Nb4+ {[%clk 0:00:02]} 44. Kc4 {[%clk 0:02:05]}  Nd5 {[%clk 0:00:01]} 45. Rxd5 {[%clk 0:02:05]}  exd5+ {[%clk 0:00:02]} 46. Kxd5 {[%clk 0:02:06]}  Kf3 {[%clk 0:00:02]} 47. e4 {[%clk 0:02:07]}  Ke3 {[%clk 0:00:03]} 48. e5 {[%clk 0:02:07]}  Kd2 {[%clk 0:00:04]} 49. e6 {[%clk 0:02:08]}  Kc1 {[%clk 0:00:04]} 50. b6 {[%clk 0:02:09]}  Kb2 {[%clk 0:00:05]} 51. b7 {[%clk 0:02:10]}  Ka1 {[%clk 0:00:06]} 52. b8=Q {[%clk 0:02:11]}  Ka2 {[%clk 0:00:07]} 53. e7 {[%clk 0:02:11]}  Ka1 {[%clk 0:00:08]} 54. e8=Q {[%clk 0:02:12]}  Ka2 {[%clk 0:00:07]} 55. Qec8 {[%clk 0:02:12]}  Ka1 {[%clk 0:00:08]} 56. Qcb7 {[%clk 0:02:13]}  Ka2 {[%clk 0:00:03]} 57. Kc4 {[%clk 0:02:14]}  Ka1 {[%clk 0:00:03]} 58. Kc3 {[%clk 0:02:15]}  Ka2 {[%clk 0:00:03]} 59. Q8a8# {[%clk 0:02:16]} 1-0


[Site "https://www.chess.com"]

[Event "Titled Tuesday Blitz March 21 Early 2023"]
[White "Begunov, Konstantin"]
[Black "Berezin, Viktor"]
[WhiteFideId "4118510"]
[BlackFideId "14107872"]
[WhiteElo "2079"]
[BlackElo "2310"]
[Result "1-0"]
[Round "04"]
[TimeControl "180+2"]
[Date "2023.03.21"]
[WhiteClock "0:00:05"]
[BlackClock "0:00:05"]

1. d4 {[%clk 0:03:00]}  Nf6 {[%clk 0:03:00]} 2. c4 {[%clk 0:03:00]}  g6 {[%clk 0:03:00]} 3. f3 {[%clk 0:03:00]}  Bg7 {[%clk 0:03:01]} 4. e4 {[%clk 0:03:00]}  O-O {[%clk 0:03:02]} 5. Nc3 {[%clk 0:03:00]}  d6 {[%clk 0:03:02]} 6. Be3 {[%clk 0:03:01]}  b6 {[%clk 0:03:03]} 7. Bd3 {[%clk 0:03:00]}  Bb7 {[%clk 0:03:02]} 8. Nge2 {[%clk 0:03:00]}  c5 {[%clk 0:03:03]} 9. d5 {[%clk 0:03:00]}  e6 {[%clk 0:03:04]} 10. dxe6 {[%clk 0:03:00]}  fxe6 {[%clk 0:03:05]} 11. O-O {[%clk 0:02:48]}  d5 {[%clk 0:03:05]} 12. cxd5 {[%clk 0:02:42]}  exd5 {[%clk 0:03:03]} 13. exd5 {[%clk 0:02:41]}  Kh8 {[%clk 0:03:03]} 14. Nf4 {[%clk 0:02:34]}  Qd6 {[%clk 0:02:52]} 15. Ne6 {[%clk 0:02:15]}  Re8 {[%clk 0:02:52]} 16. Bf4 {[%clk 0:02:10]}  Qe7 {[%clk 0:02:43]} 17. Nc7 {[%clk 0:02:02]}  Nbd7 {[%clk 0:02:42]} 18. d6 {[%clk 0:01:54]}  Qf7 {[%clk 0:02:38]} 19. Nxa8 {[%clk 0:01:27]}  Bxa8 {[%clk 0:02:39]} 20. Re1 {[%clk 0:01:19]}  Ne4 {[%clk 0:02:16]} 21. Bxe4 {[%clk 0:00:47]}  Qxf4 {[%clk 0:02:16]} 22. Bxa8 {[%clk 0:00:35]}  Bd4+ {[%clk 0:02:14]} 23. Kh1 {[%clk 0:00:29]}  Rxa8 {[%clk 0:02:14]} 24. Ne2 {[%clk 0:00:19]}  Qxd6 {[%clk 0:02:10]} 25. Nxd4 {[%clk 0:00:19]}  cxd4 {[%clk 0:02:11]} 26. Qd3 {[%clk 0:00:19]}  Nc5 {[%clk 0:02:10]} 27. Qc4 {[%clk 0:00:19]}  Rd8 {[%clk 0:02:10]} 28. Rad1 {[%clk 0:00:19]}  a5 {[%clk 0:02:10]} 29. a3 {[%clk 0:00:19]}  a4 {[%clk 0:02:10]} 30. Qb5 {[%clk 0:00:17]}  d3 {[%clk 0:02:08]} 31. Qc4 {[%clk 0:00:17]}  Kg7 {[%clk 0:02:06]} 32. Re3 {[%clk 0:00:17]}  Qd4 {[%clk 0:02:01]} 33. Qxd4+ {[%clk 0:00:17]}  Rxd4 {[%clk 0:02:02]} 34. Kg1 {[%clk 0:00:17]}  Rc4 {[%clk 0:01:59]} 35. Rd2 {[%clk 0:00:16]}  b5 {[%clk 0:01:38]} 36. Kf2 {[%clk 0:00:16]}  b4 {[%clk 0:01:38]} 37. axb4 {[%clk 0:00:13]}  Rxb4 {[%clk 0:01:39]} 38. Re5 {[%clk 0:00:13]}  Rc4 {[%clk 0:01:37]} 39. Ke3 {[%clk 0:00:13]}  Kf6 {[%clk 0:01:33]} 40. Rd5 {[%clk 0:00:13]}  Ke6 {[%clk 0:01:32]} 41. Rd4 {[%clk 0:00:14]}  Rc1 {[%clk 0:01:28]} 42. h4 {[%clk 0:00:13]}  Ke5 {[%clk 0:01:22]} 43. Rb4 {[%clk 0:00:12]}  Kd5 {[%clk 0:01:19]} 44. Rd4+ {[%clk 0:00:11]}  Ke5 {[%clk 0:01:19]} 45. Rb4 {[%clk 0:00:12]}  Re1+ {[%clk 0:01:07]} 46. Kf2 {[%clk 0:00:12]}  Rh1 {[%clk 0:01:05]} 47. Rb5 {[%clk 0:00:11]}  Kd4 {[%clk 0:01:02]} 48. Rb4+ {[%clk 0:00:10]}  Kd5 {[%clk 0:01:02]} 49. Ke3 {[%clk 0:00:10]}  Re1+ {[%clk 0:01:00]} 50. Kf2 {[%clk 0:00:10]}  Re7 {[%clk 0:01:00]} 51. Rf4 {[%clk 0:00:10]}  Rb7 {[%clk 0:00:59]} 52. h5 {[%clk 0:00:10]}  gxh5 {[%clk 0:00:58]} 53. Rh4 {[%clk 0:00:10]}  Re7 {[%clk 0:00:55]} 54. Rxh5+ {[%clk 0:00:11]}  Kc4 {[%clk 0:00:56]} 55. Rh4+ {[%clk 0:00:11]}  Kb3 {[%clk 0:00:55]} 56. Rh5 {[%clk 0:00:11]}  Rc7 {[%clk 0:00:55]} 57. Ke3 {[%clk 0:00:10]}  Re7+ {[%clk 0:00:55]} 58. Kf2 {[%clk 0:00:10]}  Kc4 {[%clk 0:00:55]} 59. g4 {[%clk 0:00:10]}  Nb3 {[%clk 0:00:53]} 60. Rd1 {[%clk 0:00:10]}  Re2+ {[%clk 0:00:53]} 61. Kg3 {[%clk 0:00:09]}  Rxb2 {[%clk 0:00:52]} 62. Rxh7 {[%clk 0:00:10]}  a3 {[%clk 0:00:49]} 63. Rd7 {[%clk 0:00:10]}  Nc5 {[%clk 0:00:49]} 64. Ra7 {[%clk 0:00:10]}  a2 {[%clk 0:00:49]} 65. g5 {[%clk 0:00:10]}  Rb1 {[%clk 0:00:38]} 66. Rxd3 {[%clk 0:00:09]}  Nxd3 {[%clk 0:00:30]} 67. Rxa2 {[%clk 0:00:10]}  Rg1+ {[%clk 0:00:31]} 68. Kh4 {[%clk 0:00:10]}  Kd4 {[%clk 0:00:28]} 69. Re2 {[%clk 0:00:10]}  Ne5 {[%clk 0:00:26]} 70. f4 {[%clk 0:00:09]}  Nd3 {[%clk 0:00:25]} 71. f5 {[%clk 0:00:08]}  Nf4 {[%clk 0:00:22]} 72. Re7 {[%clk 0:00:08]}  Nd5 {[%clk 0:00:21]} 73. Re6 {[%clk 0:00:07]}  Nf4 {[%clk 0:00:18]} 74. Re8 {[%clk 0:00:07]}  Ng2+ {[%clk 0:00:11]} 75. Kh5 {[%clk 0:00:07]}  Nf4+ {[%clk 0:00:11]} 76. Kh6 {[%clk 0:00:06]}  Rh1+ {[%clk 0:00:11]} 77. Kg7 {[%clk 0:00:06]}  Nh5+ {[%clk 0:00:11]} 78. Kf7 {[%clk 0:00:06]}  Rf1 {[%clk 0:00:11]} 79. f6 {[%clk 0:00:06]}  Nf4 {[%clk 0:00:11]} 80. g6 {[%clk 0:00:06]}  Nd5 {[%clk 0:00:10]} 81. Re6 {[%clk 0:00:04]}  Nf4 {[%clk 0:00:10]} 82. g7 {[%clk 0:00:03]}  Nxe6 {[%clk 0:00:05]} 83. Kxe6 {[%clk 0:00:04]}  Rg1 {[%clk 0:00:05]} 84. f7 {[%clk 0:00:04]}  Re1+ {[%clk 0:00:05]} 85. Kd7 {[%clk 0:00:04]}  Rf1 {[%clk 0:00:05]} 86. f8=Q {[%clk 0:00:04]}  Rd1 {[%clk 0:00:06]} 87. g8=Q {[%clk 0:00:04]}  Kc3+ {[%clk 0:00:05]} 88. Ke8 {[%clk 0:00:05]}  Kc2 {[%clk 0:00:06]} 89. Qe7 {[%clk 0:00:05]}  Rd2 {[%clk 0:00:07]} 90. Qg3 {[%clk 0:00:05]}  Rd3 {[%clk 0:00:07]} 91. Qgc7+ {[%clk 0:00:06]}  Kd2 {[%clk 0:00:07]} 92. Qe4 {[%clk 0:00:06]}  Rh3 {[%clk 0:00:05]} 93. Qcc2# {[%clk 0:00:05]} 1-0


[Site "https://www.chess.com"]

[Event "Titled Tuesday Blitz March 21 Early 2023"]
[White "Fernandez Garcia, Gumersindo"]
[Black "Arias, Juan Cruz"]
[WhiteFideId "24516740"]
[BlackFideId "118540"]
[WhiteElo "2093"]
[BlackElo "2243"]
[Result "1-0"]
[Round "04"]
[TimeControl "180+2"]
[Date "2023.03.21"]
[WhiteClock "0:00:12"]
[BlackClock "0:00:53"]

1. d4 {[%clk 0:01:06]}  Nf6 {[%clk 0:02:53]} 2. Nf3 {[%clk 0:01:06]}  d5 {[%clk 0:02:47]} 3. g3 {[%clk 0:01:06]}  e6 {[%clk 0:02:47]} 4. Bg2 {[%clk 0:01:07]}  c5 {[%clk 0:02:46]} 5. O-O {[%clk 0:01:08]}  Nc6 {[%clk 0:02:46]} 6. c4 {[%clk 0:01:09]}  dxc4 {[%clk 0:02:46]} 7. dxc5 {[%clk 0:01:09]}  Qxd1 {[%clk 0:02:46]} 8. Rxd1 {[%clk 0:01:09]}  Bxc5 {[%clk 0:02:47]} 9. Na3 {[%clk 0:01:09]}  Bxa3 {[%clk 0:02:41]} 10. bxa3 {[%clk 0:01:10]}  Bd7 {[%clk 0:02:33]} 11. Bb2 {[%clk 0:01:11]}  Rc8 {[%clk 0:02:28]} 12. Rac1 {[%clk 0:01:11]}  Na5 {[%clk 0:02:27]} 13. Ne5 {[%clk 0:01:11]}  Ba4 {[%clk 0:02:23]} 14. Rd4 {[%clk 0:01:04]}  b5 {[%clk 0:02:10]} 15. Bc3 {[%clk 0:01:03]}  Nb3 {[%clk 0:02:01]} 16. axb3 {[%clk 0:01:03]}  cxb3 {[%clk 0:01:58]} 17. Bc6+ {[%clk 0:00:55]}  Kf8 {[%clk 0:01:57]} 18. Bb4+ {[%clk 0:00:43]}  Kg8 {[%clk 0:01:57]} 19. Rcd1 {[%clk 0:00:39]}  h5 {[%clk 0:01:50]} 20. Bb7 {[%clk 0:00:17]}  Rb8 {[%clk 0:01:45]} 21. Rd8+ {[%clk 0:00:18]}  Kh7 {[%clk 0:01:45]} 22. Rxh8+ {[%clk 0:00:17]}  Kxh8 {[%clk 0:01:45]} 23. Bf3 {[%clk 0:00:15]}  Kg8 {[%clk 0:01:41]} 24. Nd3 {[%clk 0:00:15]}  Rc8 {[%clk 0:01:40]} 25. Rb1 {[%clk 0:00:16]}  Rc2 {[%clk 0:01:37]} 26. Rb2 {[%clk 0:00:16]}  Rc4 {[%clk 0:01:35]} 27. Nc5 {[%clk 0:00:14]}  h4 {[%clk 0:01:30]} 28. gxh4 {[%clk 0:00:11]}  Rxh4 {[%clk 0:01:29]} 29. Nxb3 {[%clk 0:00:12]}  Nd5 {[%clk 0:01:21]} 30. Bxd5 {[%clk 0:00:11]}  exd5 {[%clk 0:01:21]} 31. Nc5 {[%clk 0:00:11]}  Bd1 {[%clk 0:01:18]} 32. Rd2 {[%clk 0:00:11]}  Rg4+ {[%clk 0:01:13]} 33. Kf1 {[%clk 0:00:11]}  Ba4 {[%clk 0:01:13]} 34. Nxa4 {[%clk 0:00:11]}  bxa4 {[%clk 0:01:14]} 35. Rxd5 {[%clk 0:00:12]}  Rh4 {[%clk 0:01:12]} 36. Kg2 {[%clk 0:00:11]}  Rg4+ {[%clk 0:01:11]} 37. Kf3 {[%clk 0:00:12]}  Rh4 {[%clk 0:01:10]} 38. Kg3 {[%clk 0:00:12]}  Rc4 {[%clk 0:01:08]} 39. Ra5 {[%clk 0:00:12]}  Rc2 {[%clk 0:01:08]} 40. e3 {[%clk 0:00:12]}  Rc7 {[%clk 0:01:08]} 41. Rxa4 {[%clk 0:00:12]}  f6 {[%clk 0:01:08]} 42. Ra5 {[%clk 0:00:12]}  Kf7 {[%clk 0:01:09]} 43. Bc5 {[%clk 0:00:12]}  Kg6 {[%clk 0:01:08]} 44. Bxa7 {[%clk 0:00:11]}  Rc4 {[%clk 0:01:08]} 45. Bd4 {[%clk 0:00:11]}  Rc2 {[%clk 0:01:06]} 46. Ra7 {[%clk 0:00:12]}  Ra2 {[%clk 0:01:02]} 47. a4 {[%clk 0:00:12]}  Kf5 {[%clk 0:01:02]} 48. a5 {[%clk 0:00:13]}  g5 {[%clk 0:01:02]} 49. Ra6 {[%clk 0:00:11]}  g4 {[%clk 0:01:01]} 50. Rxf6+ {[%clk 0:00:11]}  Kg5 {[%clk 0:01:01]} 51. Rf4 {[%clk 0:00:10]}  Rxa5 {[%clk 0:01:01]} 52. Rxg4+ {[%clk 0:00:10]}  Kh5 {[%clk 0:01:02]} 53. h3 {[%clk 0:00:11]}  Rb5 {[%clk 0:01:01]} 54. Rf4 {[%clk 0:00:12]}  Rb1 {[%clk 0:01:01]} 55. Rf5+ {[%clk 0:00:12]}  Kg6 {[%clk 0:01:01]} 56. Rd5 {[%clk 0:00:12]}  Rb3 {[%clk 0:00:57]} 57. Kf4 {[%clk 0:00:13]}  Kh6 {[%clk 0:00:57]} 58. Rd6+ {[%clk 0:00:13]}  Kh5 {[%clk 0:00:57]} 59. Bg7 {[%clk 0:00:12]}  Rb4+ {[%clk 0:00:55]} 60. e4 {[%clk 0:00:13]}  Rb6 {[%clk 0:00:53]} 61. Rxb6 {[%clk 0:00:12]} 1-0


[Site "https://www.chess.com"]

[Event "Titled Tuesday Blitz March 21 Early 2023"]
[White "Ismagilov, Damir"]
[Black "Fernandez Hernandez, Arturo A."]
[WhiteFideId "34199982"]
[BlackFideId "3509230"]
[WhiteElo "2078"]
[BlackElo "2393"]
[Result "1-0"]
[Round "04"]
[TimeControl "180+2"]
[Date "2023.03.21"]
[WhiteClock "0:00:03"]
[BlackClock "0:00:05"]

1. c4 {[%clk 0:03:00]}  e6 {[%clk 0:02:52]} 2. Nc3 {[%clk 0:03:00]}  d5 {[%clk 0:02:52]} 3. e3 {[%clk 0:02:55]}  Nf6 {[%clk 0:02:51]} 4. b3 {[%clk 0:02:54]}  Be7 {[%clk 0:02:50]} 5. Bb2 {[%clk 0:02:54]}  O-O {[%clk 0:02:51]} 6. Nf3 {[%clk 0:02:51]}  c5 {[%clk 0:02:51]} 7. cxd5 {[%clk 0:02:50]}  exd5 {[%clk 0:02:51]} 8. d4 {[%clk 0:02:49]}  b6 {[%clk 0:02:50]} 9. Be2 {[%clk 0:02:46]}  Bb7 {[%clk 0:02:50]} 10. O-O {[%clk 0:02:46]}  Nbd7 {[%clk 0:02:48]} 11. Rc1 {[%clk 0:02:47]}  Rc8 {[%clk 0:02:47]} 12. Bd3 {[%clk 0:02:48]}  Re8 {[%clk 0:02:47]} 13. Qe2 {[%clk 0:02:47]}  Bd6 {[%clk 0:02:45]} 14. Ba6 {[%clk 0:02:46]}  Bxa6 {[%clk 0:02:39]} 15. Qxa6 {[%clk 0:02:47]}  Bb8 {[%clk 0:02:38]} 16. Rfd1 {[%clk 0:02:45]}  c4 {[%clk 0:02:31]} 17. Nb5 {[%clk 0:02:37]}  Ne4 {[%clk 0:02:17]} 18. bxc4 {[%clk 0:02:06]}  Rxc4 {[%clk 0:01:43]} 19. Nxa7 {[%clk 0:01:49]}  Bxa7 {[%clk 0:01:41]} 20. Qxa7 {[%clk 0:01:39]}  b5 {[%clk 0:01:38]} 21. Qb7 {[%clk 0:01:32]}  Nb6 {[%clk 0:01:07]} 22. Ne5 {[%clk 0:01:25]}  Nd6 {[%clk 0:01:06]} 23. Qa7 {[%clk 0:01:01]}  Ra4 {[%clk 0:01:02]} 24. Qc7 {[%clk 0:00:41]}  Qxc7 {[%clk 0:01:02]} 25. Rxc7 {[%clk 0:00:42]}  Rxa2 {[%clk 0:01:02]} 26. Bc3 {[%clk 0:00:36]}  f6 {[%clk 0:00:59]} 27. Nd3 {[%clk 0:00:35]}  Rc8 {[%clk 0:00:16]} 28. Rxc8+ {[%clk 0:00:30]}  Ndxc8 {[%clk 0:00:16]} 29. Ra1 {[%clk 0:00:27]}  Rxa1+ {[%clk 0:00:16]} 30. Bxa1 {[%clk 0:00:28]}  Kf7 {[%clk 0:00:16]} 31. Kf1 {[%clk 0:00:26]}  g5 {[%clk 0:00:16]} 32. Ke2 {[%clk 0:00:27]}  Ke6 {[%clk 0:00:17]} 33. Bc3 {[%clk 0:00:26]}  Nd6 {[%clk 0:00:16]} 34. Ba5 {[%clk 0:00:25]}  Nbc4 {[%clk 0:00:16]} 35. Nc5+ {[%clk 0:00:24]}  Ke7 {[%clk 0:00:15]} 36. Bb4 {[%clk 0:00:24]}  Kf7 {[%clk 0:00:16]} 37. Na6 {[%clk 0:00:21]}  Ne8 {[%clk 0:00:15]} 38. f3 {[%clk 0:00:19]}  h5 {[%clk 0:00:15]} 39. e4 {[%clk 0:00:19]}  dxe4 {[%clk 0:00:05]} 40. fxe4 {[%clk 0:00:20]}  Ke6 {[%clk 0:00:05]} 41. Kd3 {[%clk 0:00:21]}  Nb2+ {[%clk 0:00:04]} 42. Kc3 {[%clk 0:00:19]}  Nd1+ {[%clk 0:00:05]} 43. Kd2 {[%clk 0:00:19]}  Nf2 {[%clk 0:00:04]} 44. Nc5+ {[%clk 0:00:18]}  Ke7 {[%clk 0:00:04]} 45. h3 {[%clk 0:00:16]}  Kd8 {[%clk 0:00:04]} 46. Ke2 {[%clk 0:00:16]}  Nh1 {[%clk 0:00:03]} 47. Kf3 {[%clk 0:00:14]}  h4 {[%clk 0:00:04]} 48. Be1 {[%clk 0:00:13]}  Nd6 {[%clk 0:00:03]} 49. e5 {[%clk 0:00:12]}  fxe5 {[%clk 0:00:01]} 50. dxe5 {[%clk 0:00:13]}  Nc4 {[%clk 0:00:02]} 51. Ne6+ {[%clk 0:00:13]}  Ke7 {[%clk 0:00:03]} 52. Nxg5 {[%clk 0:00:14]}  Nxe5+ {[%clk 0:00:03]} 53. Ke4 {[%clk 0:00:13]}  Kf6 {[%clk 0:00:02]} 54. Bxh4 {[%clk 0:00:12]}  Ng6 {[%clk 0:00:02]} 55. Nf3+ {[%clk 0:00:06]}  Nxh4 {[%clk 0:00:02]} 56. Nxh4 {[%clk 0:00:07]}  Kg5 {[%clk 0:00:02]} 57. Nf3+ {[%clk 0:00:07]}  Kh5 {[%clk 0:00:03]} 58. Nd4 {[%clk 0:00:08]}  Ng3+ {[%clk 0:00:02]} 59. Kf3 {[%clk 0:00:08]}  Nf1 {[%clk 0:00:02]} 60. Nxb5 {[%clk 0:00:08]}  Kh4 {[%clk 0:00:02]} 61. Nd4 {[%clk 0:00:07]}  Nd2+ {[%clk 0:00:03]} 62. Kf2 {[%clk 0:00:07]}  Ne4+ {[%clk 0:00:03]} 63. Kg1 {[%clk 0:00:06]}  Ng3 {[%clk 0:00:03]} 64. Nf3+ {[%clk 0:00:07]}  Kh5 {[%clk 0:00:04]} 65. Kf2 {[%clk 0:00:07]}  Ne4+ {[%clk 0:00:04]} 66. Ke3 {[%clk 0:00:07]}  Ng3 {[%clk 0:00:05]} 67. Kf4 {[%clk 0:00:07]}  Ne2+ {[%clk 0:00:05]} 68. Kf5 {[%clk 0:00:08]}  Ng3+ {[%clk 0:00:06]} 69. Ke5 {[%clk 0:00:08]}  Kh6 {[%clk 0:00:04]} 70. Kf4 {[%clk 0:00:08]}  Ne2+ {[%clk 0:00:05]} 71. Kg4 {[%clk 0:00:08]}  Kg6 {[%clk 0:00:05]} 72. h4 {[%clk 0:00:09]}  Kh6 {[%clk 0:00:05]} 73. Kh3 {[%clk 0:00:09]}  Nf4+ {[%clk 0:00:05]} 74. Kg4 {[%clk 0:00:09]}  Ne2 {[%clk 0:00:05]} 75. g3 {[%clk 0:00:10]}  Nc3 {[%clk 0:00:04]} 76. Kf5 {[%clk 0:00:09]}  Ne2 {[%clk 0:00:04]} 77. g4 {[%clk 0:00:10]}  Ng3+ {[%clk 0:00:04]} 78. Kf6 {[%clk 0:00:09]}  Ne4+ {[%clk 0:00:04]} 79. Ke5 {[%clk 0:00:09]}  Nf2 {[%clk 0:00:04]} 80. Kf5 {[%clk 0:00:08]}  Nd3 {[%clk 0:00:04]} 81. g5+ {[%clk 0:00:09]}  Kh5 {[%clk 0:00:05]} 82. g6 {[%clk 0:00:09]}  Kh6 {[%clk 0:00:05]} 83. Kf6 {[%clk 0:00:09]}  Nf4 {[%clk 0:00:05]} 84. Ne5 {[%clk 0:00:04]}  Nh5+ {[%clk 0:00:05]} 85. Kf7 {[%clk 0:00:04]}  Ng7 {[%clk 0:00:05]} 86. Ng4+ {[%clk 0:00:03]} 1-0


[Site "https://www.chess.com"]

[Event "Titled Tuesday Blitz March 21 Early 2023"]
[White "ArtemDyachuk"]
[Black "Gubajdullin, Alexei"]
[BlackFideId "4141202"]
[WhiteElo "2377"]
[BlackElo "2267"]
[Result "0-1"]
[Round "04"]
[TimeControl "180+2"]
[Date "2023.03.21"]
[WhiteClock "0:00:02"]
[BlackClock "0:00:57"]

1. Nf3 {[%clk 0:02:53]}  Nf6 {[%clk 0:02:58]} 2. c4 {[%clk 0:02:53]}  c5 {[%clk 0:02:58]} 3. e3 {[%clk 0:02:53]}  g6 {[%clk 0:02:56]} 4. b3 {[%clk 0:02:53]}  Bg7 {[%clk 0:02:56]} 5. Bb2 {[%clk 0:02:53]}  O-O {[%clk 0:02:55]} 6. Be2 {[%clk 0:02:54]}  b6 {[%clk 0:02:55]} 7. O-O {[%clk 0:02:53]}  Bb7 {[%clk 0:02:55]} 8. Qc1 {[%clk 0:02:48]}  Nc6 {[%clk 0:02:52]} 9. Rd1 {[%clk 0:02:46]}  Rc8 {[%clk 0:02:52]} 10. Nc3 {[%clk 0:02:36]}  d5 {[%clk 0:02:50]} 11. Nxd5 {[%clk 0:02:30]}  Nxd5 {[%clk 0:02:50]} 12. Bxg7 {[%clk 0:02:31]}  Kxg7 {[%clk 0:02:49]} 13. cxd5 {[%clk 0:02:31]}  Qxd5 {[%clk 0:02:50]} 14. Qb2+ {[%clk 0:02:31]}  e5 {[%clk 0:02:49]} 15. Rac1 {[%clk 0:02:24]}  f6 {[%clk 0:02:48]} 16. a3 {[%clk 0:02:08]}  e4 {[%clk 0:02:48]} 17. Ne1 {[%clk 0:02:08]}  Ne5 {[%clk 0:02:48]} 18. d3 {[%clk 0:01:45]}  exd3 {[%clk 0:02:45]} 19. Bxd3 {[%clk 0:01:46]}  Nxd3 {[%clk 0:02:41]} 20. Rxd3 {[%clk 0:01:45]}  Qe6 {[%clk 0:02:38]} 21. Rcd1 {[%clk 0:01:45]}  Rf7 {[%clk 0:02:38]} 22. Qd2 {[%clk 0:01:38]}  Rcc7 {[%clk 0:02:34]} 23. b4 {[%clk 0:01:31]}  c4 {[%clk 0:02:29]} 24. Rd6 {[%clk 0:01:30]}  Qe5 {[%clk 0:02:26]} 25. f4 {[%clk 0:01:16]}  Qe4 {[%clk 0:02:23]} 26. Qc3 {[%clk 0:01:15]}  Rce7 {[%clk 0:02:21]} 27. Kf2 {[%clk 0:01:14]}  b5 {[%clk 0:01:55]} 28. Nf3 {[%clk 0:01:04]}  h6 {[%clk 0:01:43]} 29. Rd8 {[%clk 0:00:53]}  g5 {[%clk 0:01:34]} 30. h3 {[%clk 0:00:27]}  gxf4 {[%clk 0:01:28]} 31. exf4 {[%clk 0:00:26]}  Qe2+ {[%clk 0:01:27]} 32. Kg3 {[%clk 0:00:11]}  Re3 {[%clk 0:01:26]} 33. Qd2 {[%clk 0:00:04]}  Bxf3 {[%clk 0:01:04]} 34. gxf3 {[%clk 0:00:03]}  Qxf3+ {[%clk 0:00:59]} 35. Kh2 {[%clk 0:00:01]}  Qxh3+ {[%clk 0:00:58]} 36. Kg1 {[%clk 0:00:02]}  Rg3+ {[%clk 0:00:57]} 0-1


[Site "https://www.chess.com"]

[Event "Titled Tuesday Blitz March 21 Early 2023"]
[White "Fule, Simon"]
[Black "Andreev, Konstantin"]
[WhiteFideId "787515"]
[BlackFideId "24239305"]
[WhiteElo "2373"]
[BlackElo "2106"]
[Result "0-1"]
[Round "04"]
[TimeControl "180+2"]
[Date "2023.03.21"]
[WhiteClock "0:00:24"]
[BlackClock "0:01:58"]

1. e4 {[%clk 0:03:00]}  c5 {[%clk 0:03:00]} 2. Nf3 {[%clk 0:03:00]}  e6 {[%clk 0:03:01]} 3. d4 {[%clk 0:03:00]}  cxd4 {[%clk 0:03:01]} 4. Nxd4 {[%clk 0:03:01]}  Nc6 {[%clk 0:03:02]} 5. Nc3 {[%clk 0:03:00]}  Qc7 {[%clk 0:03:02]} 6. Be3 {[%clk 0:02:59]}  Nf6 {[%clk 0:03:02]} 7. a3 {[%clk 0:02:57]}  a6 {[%clk 0:03:02]} 8. f4 {[%clk 0:02:56]}  d6 {[%clk 0:03:02]} 9. Qf3 {[%clk 0:02:56]}  Be7 {[%clk 0:03:01]} 10. O-O-O {[%clk 0:02:54]}  Rb8 {[%clk 0:02:59]} 11. Nxc6 {[%clk 0:02:45]}  bxc6 {[%clk 0:02:56]} 12. g4 {[%clk 0:02:45]}  d5 {[%clk 0:02:56]} 13. g5 {[%clk 0:02:42]}  Nd7 {[%clk 0:02:55]} 14. exd5 {[%clk 0:02:13]}  cxd5 {[%clk 0:02:53]} 15. Bd4 {[%clk 0:02:13]}  O-O {[%clk 0:02:51]} 16. h4 {[%clk 0:02:06]}  Bd6 {[%clk 0:02:50]} 17. f5 {[%clk 0:01:48]}  Qb7 {[%clk 0:02:39]} 18. Na4 {[%clk 0:00:55]}  e5 {[%clk 0:02:36]} 19. Bc3 {[%clk 0:00:53]}  d4 {[%clk 0:02:34]} 20. Qxb7 {[%clk 0:00:52]}  Bxb7 {[%clk 0:02:35]} 21. Rh3 {[%clk 0:00:46]}  Bc6 {[%clk 0:02:14]} 22. Bxa6 {[%clk 0:00:40]}  Bxa4 {[%clk 0:02:12]} 23. Bxd4 {[%clk 0:00:41]}  exd4 {[%clk 0:02:03]} 24. Rxd4 {[%clk 0:00:39]}  Rb6 {[%clk 0:02:04]} 25. Rxa4 {[%clk 0:00:38]}  Nc5 {[%clk 0:02:03]} 26. Rd4 {[%clk 0:00:29]}  Nxa6 {[%clk 0:02:02]} 27. b4 {[%clk 0:00:28]}  h6 {[%clk 0:01:59]} 28. gxh6 {[%clk 0:00:27]}  gxh6 {[%clk 0:01:59]} 29. Kb2 {[%clk 0:00:24]}  Be5 {[%clk 0:01:58]} 0-1


[Site "https://www.chess.com"]